[Event "GrandPrix_30.05"]
[Site "Chess.com"]
[Date "2020.05.30"]
[Round "3"]
[White "payto1"]
[Black "lilleper1"]
[Result "1/2-1/2"]
[WhiteElo "2176"]
[BlackElo "2394"]
[TimeControl "600+2"]
[EndTime "9:19:22 PDT"]
[Termination "Game drawn by agreement"]

1. d4 {[%clk 0:09:59.3]} 1... Nf6 {[%clk 0:10:00.7]} 2. Bg5 {[%clk 0:09:59.3]}
2... Ne4 {[%clk 0:10:01.1]} 3. h4 {[%clk 0:09:59.6]} 3... c5 {[%clk 0:09:56.2]}
4. d5 {[%clk 0:10:00.3]} 4... Qb6 {[%clk 0:09:35.7]} 5. Nd2 {[%clk 0:09:58]}
5... h6 {[%clk 0:08:38.3]} 6. Nxe4 {[%clk 0:09:56.7]} 6... hxg5 {[%clk
0:08:37.9]} 7. c3 {[%clk 0:09:57]} 7... gxh4 {[%clk 0:08:19.5]} 8. e3 {[%clk
0:09:56.5]} 8... d6 {[%clk 0:07:53.3]} 9. Nf3 {[%clk 0:09:01.7]} 9... Bf5 {[%clk
0:07:36.4]} 10. Qa4+ {[%clk 0:08:31.8]} 10... Nd7 {[%clk 0:07:21.8]} 11. O-O-O
{[%clk 0:08:27.1]} 11... g6 {[%clk 0:05:49.6]} 12. Rxh4 {[%clk 0:06:16.8]} 12...
Rxh4 {[%clk 0:05:47.2]} 13. Nxh4 {[%clk 0:06:18.7]} 13... Bxe4 {[%clk
0:05:48.3]} 14. Qxe4 {[%clk 0:06:19.7]} 14... O-O-O {[%clk 0:05:49.3]} 15. Nf3
{[%clk 0:06:14.6]} 15... Nf6 {[%clk 0:05:43.1]} 16. Qa4 {[%clk 0:06:14.3]} 16...
Bh6 {[%clk 0:05:02.3]} 17. Be2 {[%clk 0:05:39]} 17... Rh8 {[%clk 0:04:41.4]} 18.
Qc4 {[%clk 0:05:35.7]} 18... Qc7 {[%clk 0:04:29.1]} 19. Kb1 {[%clk 0:05:10]}
19... Qd7 {[%clk 0:04:16.8]} 20. Rf1 {[%clk 0:04:15.3]} 20... Qf5+ {[%clk
0:04:04.7]} 21. Qd3 {[%clk 0:03:56.3]} 21... Qxd3+ {[%clk 0:02:46.1]} 22. Bxd3
{[%clk 0:03:58.2]} 22... a6 {[%clk 0:02:00.5]} 23. c4 {[%clk 0:03:52.9]} 23...
Ng4 {[%clk 0:01:53.7]} 24. Kc2 {[%clk 0:03:45.8]} 24... Kd7 {[%clk 0:01:27.6]}
25. Kd2 {[%clk 0:03:42.8]} 25... Bg7 {[%clk 0:01:26.1]} 26. b3 {[%clk
0:03:40.6]} 26... Bf6 {[%clk 0:01:24]} 27. Ke2 {[%clk 0:03:32]} 27... Nh2 {[%clk
0:01:08]} 28. Nxh2 {[%clk 0:03:19.3]} 28... Rxh2 {[%clk 0:01:07.9]} 29. g3
{[%clk 0:03:20.1]} 29... Be5 {[%clk 0:01:02.1]} 30. Kf3 {[%clk 0:03:16.9]} 30...
Bf6 {[%clk 0:00:59.3]} 1/2-1/2

[Event "GrandPrix_30.05"]
[Site "Chess.com"]
[Date "2020.05.30"]
[Round "3"]
[White "Msb2"]
[Black "Gareth-Bale11"]
[Result "1/2-1/2"]
[WhiteElo "2636"]
[BlackElo "2470"]
[TimeControl "600+2"]
[EndTime "9:19:24 PDT"]
[Termination "Game drawn by repetition"]

1. d4 {[%clk 0:10:01.9]} 1... Nf6 {[%clk 0:09:59.4]} 2. c4 {[%clk 0:10:02.3]}
2... e6 {[%clk 0:09:58.6]} 3. Nc3 {[%clk 0:10:03.5]} 3... Bb4 {[%clk 0:09:59.7]}
4. e3 {[%clk 0:10:04.7]} 4... O-O {[%clk 0:09:59.2]} 5. Bd2 {[%clk 0:10:06]}
5... d5 {[%clk 0:09:59.4]} 6. Nf3 {[%clk 0:10:06.4]} 6... b6 {[%clk 0:09:59.3]}
7. cxd5 {[%clk 0:10:07.6]} 7... exd5 {[%clk 0:10:00.2]} 8. Bd3 {[%clk
0:10:09.3]} 8... Nbd7 {[%clk 0:09:37.7]} 9. Rc1 {[%clk 0:10:04.4]} 9... a6
{[%clk 0:09:16.1]} 10. Ne5 {[%clk 0:09:26.6]} 10... Nxe5 {[%clk 0:08:29.5]} 11.
dxe5 {[%clk 0:09:28.5]} 11... Ng4 {[%clk 0:08:30.5]} 12. f4 {[%clk 0:07:53.3]}
12... d4 {[%clk 0:08:10.5]} 13. exd4 {[%clk 0:07:42]} 13... Qxd4 {[%clk
0:08:05.3]} 14. Qe2 {[%clk 0:07:42.9]} 14... Bb7 {[%clk 0:06:42.6]} 15. h3
{[%clk 0:07:31.2]} 15... Nxe5 {[%clk 0:05:22.4]} 16. fxe5 {[%clk 0:07:19.5]}
16... Rfe8 {[%clk 0:05:23.6]} 17. Kd1 {[%clk 0:05:28.5]} 17... Rad8 {[%clk
0:04:59]} 18. Kc2 {[%clk 0:05:27]} 18... Rxe5 {[%clk 0:04:53.4]} 19. Qf1 {[%clk
0:05:28]} 19... Bxg2 {[%clk 0:04:48.1]} 20. Bxh7+ {[%clk 0:04:46.9]} 20... Kxh7
{[%clk 0:04:47.5]} 21. Qxg2 {[%clk 0:04:48.4]} 21... Bxc3 {[%clk 0:04:06.5]} 22.
Bxc3 {[%clk 0:03:41.4]} 22... Qd3+ {[%clk 0:04:06.7]} 23. Kb3 {[%clk 0:03:42.4]}
23... Rb5+ {[%clk 0:03:59.3]} 24. Ka3 {[%clk 0:03:43.7]} 24... Ra5+ {[%clk
0:03:15.9]} 25. Kb3 {[%clk 0:03:43.7]} 25... Qb5+ {[%clk 0:02:01.2]} 26. Kc2
{[%clk 0:03:23.6]} 26... Qf5+ {[%clk 0:01:52.1]} 27. Kb3 {[%clk 0:03:23.8]}
27... Qb5+ {[%clk 0:00:49.7]} 28. Kc2 {[%clk 0:03:23.5]} 28... Qa4+ {[%clk
0:00:47.5]} 29. Kb1 {[%clk 0:03:24.4]} 29... Qxa2+ {[%clk 0:00:48.2]} 30. Kc2
{[%clk 0:03:25.9]} 30... Qa4+ {[%clk 0:00:49.1]} 31. Kb1 {[%clk 0:03:25.5]}
31... Qa2+ {[%clk 0:00:50.3]} 32. Kc2 {[%clk 0:03:26.9]} 32... Qa4+ {[%clk
0:00:52]} 33. Kb1 {[%clk 0:03:28.5]} 33... Qa2+ {[%clk 0:00:52.9]} 1/2-1/2

[Event "GrandPrix_30.05"]
[Site "Chess.com"]
[Date "2020.05.30"]
[Round "3"]
[White "Ave_Mariia"]
[Black "IwkooO"]
[Result "1-0"]
[WhiteElo "2207"]
[BlackElo "2313"]
[TimeControl "600+2"]
[EndTime "9:19:32 PDT"]
[Termination "Ave_Mariia won by resignation"]

1. c4 {[%clk 0:10:01.9]} 1... g6 {[%clk 0:09:50.9]} 2. g3 {[%clk 0:09:59.1]}
2... Nf6 {[%clk 0:09:51.2]} 3. Bg2 {[%clk 0:10:00.2]} 3... d5 {[%clk 0:09:51.6]}
4. cxd5 {[%clk 0:09:59.3]} 4... Nxd5 {[%clk 0:09:53.5]} 5. Nc3 {[%clk
0:10:00.5]} 5... Nb6 {[%clk 0:09:54.2]} 6. Nf3 {[%clk 0:09:59.6]} 6... Bg7
{[%clk 0:09:55.4]} 7. O-O {[%clk 0:10:00.3]} 7... Nc6 {[%clk 0:09:55.5]} 8. d3
{[%clk 0:09:58.4]} 8... O-O {[%clk 0:09:55.5]} 9. Be3 {[%clk 0:09:52.2]} 9... e5
{[%clk 0:09:56.3]} 10. Rc1 {[%clk 0:09:46.4]} 10... Nd4 {[%clk 0:09:53.2]} 11.
Ne4 {[%clk 0:09:16.9]} 11... c6 {[%clk 0:08:13.2]} 12. Nc5 {[%clk 0:09:04.2]}
12... Nxf3+ {[%clk 0:08:01.5]} 13. Bxf3 {[%clk 0:09:04.6]} 13... Nd5 {[%clk
0:08:02.1]} 14. Bd2 {[%clk 0:08:46]} 14... b6 {[%clk 0:08:01.7]} 15. Ne4 {[%clk
0:08:38]} 15... c5 {[%clk 0:07:52.6]} 16. Qb3 {[%clk 0:07:23.9]} 16... Bb7
{[%clk 0:07:51.3]} 17. Nxc5 {[%clk 0:07:16.6]} 17... Bc6 {[%clk 0:07:28.2]} 18.
Ne6 {[%clk 0:07:00.2]} 18... fxe6 {[%clk 0:07:05.1]} 19. Rxc6 {[%clk 0:07:01.1]}
19... Qd7 {[%clk 0:07:04.3]} 20. Rfc1 {[%clk 0:06:53.7]} 20... Kh8 {[%clk
0:07:00.8]} 21. Qc4 {[%clk 0:05:42.5]} 21... Rad8 {[%clk 0:06:55.7]} 22. Bb4
{[%clk 0:05:05]} 22... Rfe8 {[%clk 0:06:20]} 23. Rd6 {[%clk 0:04:51.1]} 23...
Qf7 {[%clk 0:06:20]} 24. Bxd5 {[%clk 0:04:36.1]} 24... exd5 {[%clk 0:06:18.3]}
25. Qc7 {[%clk 0:04:32.9]} 25... Qxc7 {[%clk 0:05:59.7]} 26. Rxc7 {[%clk
0:04:33.2]} 26... e4 {[%clk 0:05:49.9]} 27. Rxd8 {[%clk 0:04:00]} 27... Rxd8
{[%clk 0:05:50.7]} 28. Bc3 {[%clk 0:03:53.5]} 28... d4 {[%clk 0:05:45.9]} 29.
Bd2 {[%clk 0:03:42.8]} 29... exd3 {[%clk 0:05:37.9]} 30. exd3 {[%clk 0:03:44.7]}
30... h5 {[%clk 0:05:06.9]} 31. Rxa7 {[%clk 0:03:44.8]} 31... Rc8 {[%clk
0:05:08]} 32. Bf4 {[%clk 0:02:43.8]} 32... Rc2 {[%clk 0:05:07.3]} 33. Ra8+
{[%clk 0:02:14.6]} 33... Kh7 {[%clk 0:05:05]} 34. b4 {[%clk 0:01:59.6]} 34...
Rb2 {[%clk 0:05:05.4]} 35. Bd6 {[%clk 0:01:49.5]} 35... Rd2 {[%clk 0:05:04]} 36.
Ra3 {[%clk 0:01:43.4]} 36... g5 {[%clk 0:04:31.8]} 37. h3 {[%clk 0:01:27.9]}
37... Kg6 {[%clk 0:04:27.5]} 38. Kg2 {[%clk 0:01:27.8]} 38... Kf5 {[%clk
0:04:27]} 39. Ra7 {[%clk 0:01:25]} 39... Bf6 {[%clk 0:04:25.2]} 40. a4 {[%clk
0:01:15.8]} 40... Rxd3 {[%clk 0:04:25.5]} 41. a5 {[%clk 0:01:17.2]} 41... bxa5
{[%clk 0:04:26]} 42. bxa5 {[%clk 0:01:18.1]} 42... Rd1 {[%clk 0:04:22.7]} 43. a6
{[%clk 0:01:11.7]} 43... d3 {[%clk 0:04:23.9]} 44. Rd7 {[%clk 0:01:07.3]} 44...
Ke6 {[%clk 0:04:17.5]} 45. Ba3 {[%clk 0:00:58.7]} 45... Rc1 {[%clk 0:04:14]} 46.
Bxc1 {[%clk 0:00:58]} 1-0

[Event "GrandPrix_30.05"]
[Site "Chess.com"]
[Date "2020.05.30"]
[Round "3"]
[White "DrVelja"]
[Black "Alex_Molchanov"]
[Result "1-0"]
[WhiteElo "2258"]
[BlackElo "2045"]
[TimeControl "600+2"]
[EndTime "9:19:33 PDT"]
[Termination "DrVelja won by resignation"]

1. e4 {[%clk 0:10:01.9]} 1... c6 {[%clk 0:09:55.7]} 2. d4 {[%clk 0:10:02.7]}
2... d5 {[%clk 0:09:57.6]} 3. exd5 {[%clk 0:10:04.6]} 3... cxd5 {[%clk
0:09:58.6]} 4. Bd3 {[%clk 0:10:06.3]} 4... Nc6 {[%clk 0:09:55.4]} 5. c3 {[%clk
0:10:07.4]} 5... Nf6 {[%clk 0:09:56.7]} 6. h3 {[%clk 0:10:09]} 6... g6 {[%clk
0:09:54.6]} 7. Bf4 {[%clk 0:10:09.3]} 7... Bf5 {[%clk 0:09:48.9]} 8. Be2 {[%clk
0:10:10.7]} 8... Bxb1 {[%clk 0:09:23.1]} 9. Rxb1 {[%clk 0:10:09]} 9... Bg7
{[%clk 0:09:23]} 10. Nf3 {[%clk 0:10:07.7]} 10... O-O {[%clk 0:09:22.6]} 11. O-O
{[%clk 0:10:08.8]} 11... Ne4 {[%clk 0:09:16.5]} 12. Bd3 {[%clk 0:09:55.9]} 12...
Nd6 {[%clk 0:09:14.2]} 13. Re1 {[%clk 0:08:50.4]} 13... e6 {[%clk 0:09:11.1]}
14. Qd2 {[%clk 0:08:40.4]} 14... Rb8 {[%clk 0:09:00.1]} 15. h4 {[%clk
0:08:08.9]} 15... b5 {[%clk 0:08:48]} 16. h5 {[%clk 0:08:05.8]} 16... Rb7 {[%clk
0:08:31.9]} 17. hxg6 {[%clk 0:07:55.8]} 17... hxg6 {[%clk 0:08:31.2]} 18. g3
{[%clk 0:06:37.1]} 18... Qd7 {[%clk 0:07:27.7]} 19. Kg2 {[%clk 0:06:27.5]} 19...
Rc8 {[%clk 0:07:25.8]} 20. Rh1 {[%clk 0:04:58.6]} 20... Ne4 {[%clk 0:07:21.4]}
21. Qe2 {[%clk 0:04:41.7]} 21... f5 {[%clk 0:06:47.5]} 22. Bxb5 {[%clk
0:04:30.7]} 22... Rb6 {[%clk 0:06:04.4]} 23. Ne5 {[%clk 0:04:07.1]} 23... Qb7
{[%clk 0:04:28.5]} 24. Bxc6 {[%clk 0:03:59.2]} 24... Rcxc6 {[%clk 0:04:28.9]}
25. Nxc6 {[%clk 0:04:00.5]} 25... Qxc6 {[%clk 0:04:29.3]} 26. f3 {[%clk
0:03:53]} 26... Nf6 {[%clk 0:04:28]} 27. Be5 {[%clk 0:03:37.2]} 27... Qa4 {[%clk
0:04:18.4]} 28. b3 {[%clk 0:03:34.9]} 28... Qa3 {[%clk 0:04:16.2]} 29. c4 {[%clk
0:03:35]} 29... dxc4 {[%clk 0:03:08.1]} 30. bxc4 {[%clk 0:03:32.2]} 30... g5
{[%clk 0:03:09.3]} 31. Rxb6 {[%clk 0:03:29]} 31... axb6 {[%clk 0:03:09.6]} 32.
Bxf6 {[%clk 0:03:30.4]} 32... Bxf6 {[%clk 0:03:11.1]} 33. Qxe6+ {[%clk
0:03:31.7]} 33... Kg7 {[%clk 0:03:12.3]} 34. Qd7+ {[%clk 0:03:10.9]} 34... Kg8
{[%clk 0:03:03.8]} 35. Qh7+ {[%clk 0:02:53.5]} 35... Kf8 {[%clk 0:03:04.2]} 36.
Qxf5 {[%clk 0:02:55.4]} 36... Qb2+ {[%clk 0:03:04.3]} 37. Kh3 {[%clk 0:02:57.1]}
37... Qxd4 {[%clk 0:03:05.3]} 38. Re1 {[%clk 0:02:55.5]} 38... Kg7 {[%clk
0:03:03.9]} 39. Re6 {[%clk 0:02:52.3]} 39... Qa1 {[%clk 0:02:52.1]} 40. Kg4
{[%clk 0:02:45.8]} 40... Qd4+ {[%clk 0:02:49.1]} 41. Kh3 {[%clk 0:02:47]} 41...
Qa1 {[%clk 0:02:48.6]} 42. Kg4 {[%clk 0:02:48.3]} 42... Qd4+ {[%clk 0:02:49]}
43. Kh5 {[%clk 0:02:46.8]} 43... Qd8 {[%clk 0:02:34.7]} 44. Qg6+ {[%clk
0:02:38.5]} 44... Kh8 {[%clk 0:02:32.2]} 45. Re8+ {[%clk 0:02:34.5]} 1-0

[Event "GrandPrix_30.05"]
[Site "Chess.com"]
[Date "2020.05.30"]
[Round "3"]
[White "econpower"]
[Black "HElissalt"]
[Result "0-1"]
[WhiteElo "2173"]
[BlackElo "2109"]
[TimeControl "600+2"]
[EndTime "9:19:53 PDT"]
[Termination "HElissalt won by resignation"]

1. c4 {[%clk 0:09:59.9]} 1... e5 {[%clk 0:09:55]} 2. g3 {[%clk 0:10:00.7]} 2...
f5 {[%clk 0:09:55.6]} 3. Bg2 {[%clk 0:10:01.5]} 3... Nf6 {[%clk 0:09:56.5]} 4.
Nc3 {[%clk 0:10:02.2]} 4... d6 {[%clk 0:09:57.6]} 5. e3 {[%clk 0:10:02.2]} 5...
Be7 {[%clk 0:09:59]} 6. Nge2 {[%clk 0:10:03.1]} 6... O-O {[%clk 0:10:00.6]} 7.
O-O {[%clk 0:10:04.7]} 7... c6 {[%clk 0:10:01.7]} 8. d3 {[%clk 0:10:05.4]} 8...
Na6 {[%clk 0:10:02.3]} 9. f4 {[%clk 0:10:04.9]} 9... Nc5 {[%clk 0:09:46.2]} 10.
b4 {[%clk 0:10:02]} 10... Ne6 {[%clk 0:09:33.2]} 11. h3 {[%clk 0:09:46]} 11...
Bd7 {[%clk 0:08:55.6]} 12. a4 {[%clk 0:09:15.5]} 12... exf4 {[%clk 0:08:12.2]}
13. gxf4 {[%clk 0:09:08]} 13... a5 {[%clk 0:08:10.2]} 14. b5 {[%clk 0:09:03.7]}
14... Nc5 {[%clk 0:08:10.1]} 15. Nd4 {[%clk 0:09:01.3]} 15... Qc7 {[%clk
0:08:03.2]} 16. Nce2 {[%clk 0:07:51.4]} 16... Nh5 {[%clk 0:07:37.1]} 17. Bf3
{[%clk 0:05:29.2]} 17... Nf6 {[%clk 0:07:26.7]} 18. Ng3 {[%clk 0:05:24.4]} 18...
g6 {[%clk 0:07:12.6]} 19. Bb2 {[%clk 0:05:24]} 19... Ne8 {[%clk 0:07:06.4]} 20.
Kg2 {[%clk 0:05:24]} 20... Bf6 {[%clk 0:07:05.9]} 21. Rh1 {[%clk 0:05:23.9]}
21... Ng7 {[%clk 0:07:06.7]} 22. h4 {[%clk 0:05:04]} 22... Rae8 {[%clk
0:06:46.7]} 23. Kf2 {[%clk 0:04:42.8]} 23... h6 {[%clk 0:04:43.4]} 24. Ra2
{[%clk 0:03:57.6]} 24... Re7 {[%clk 0:04:30]} 25. Nde2 {[%clk 0:03:47.1]} 25...
Bxb2 {[%clk 0:04:28]} 26. Rxb2 {[%clk 0:03:48.2]} 26... Rfe8 {[%clk 0:04:24.4]}
27. Nf1 {[%clk 0:03:49.1]} 27... h5 {[%clk 0:04:14.5]} 28. Rg1 {[%clk
0:03:46.9]} 28... Kh7 {[%clk 0:04:07]} 29. Nc3 {[%clk 0:03:35]} 29... Qd8 {[%clk
0:03:46.8]} 30. Re2 {[%clk 0:03:28.6]} 30... Rf7 {[%clk 0:03:37.6]} 31. Rh1
{[%clk 0:03:29.2]} 31... Qf6 {[%clk 0:03:32.2]} 32. Qc2 {[%clk 0:03:12.3]} 32...
Nce6 {[%clk 0:03:21.4]} 33. Ng3 {[%clk 0:02:58.1]} 33... Rfe7 {[%clk 0:03:16.5]}
34. Qd2 {[%clk 0:02:28.7]} 34... Nc5 {[%clk 0:03:13.4]} 35. Qc2 {[%clk
0:02:29.4]} 35... Nce6 {[%clk 0:02:36.6]} 36. Ree1 {[%clk 0:02:12.7]} 36... Nxf4
{[%clk 0:02:17.8]} 37. exf4 {[%clk 0:02:02.1]} 37... Qd4+ {[%clk 0:02:16.8]} 0-1

[Event "GrandPrix_30.05"]
[Site "Chess.com"]
[Date "2020.05.30"]
[Round "3"]
[White "yamalchess"]
[Black "Supernotar"]
[Result "1/2-1/2"]
[WhiteElo "2362"]
[BlackElo "2162"]
[TimeControl "600+2"]
[EndTime "9:20:07 PDT"]
[Termination "Game drawn by repetition"]

1. d4 {[%clk 0:10:01.9]} 1... d5 {[%clk 0:09:55.4]} 2. c4 {[%clk 0:09:59.8]}
2... dxc4 {[%clk 0:09:56.3]} 3. Nf3 {[%clk 0:09:59.2]} 3... Nf6 {[%clk 0:09:57]}
4. e3 {[%clk 0:10:00.1]} 4... e6 {[%clk 0:09:57.8]} 5. Bxc4 {[%clk 0:10:01.5]}
5... a6 {[%clk 0:09:58.7]} 6. O-O {[%clk 0:10:00.7]} 6... b5 {[%clk 0:09:59.7]}
7. Bb3 {[%clk 0:09:59.5]} 7... Bb7 {[%clk 0:10:00.2]} 8. a4 {[%clk 0:10:00.2]}
8... b4 {[%clk 0:10:00.6]} 9. Nbd2 {[%clk 0:09:53.6]} 9... Nbd7 {[%clk
0:10:01.5]} 10. a5 {[%clk 0:09:50.8]} 10... c5 {[%clk 0:09:47.4]} 11. Nc4 {[%clk
0:08:52.4]} 11... Qc7 {[%clk 0:09:39.9]} 12. Ba4 {[%clk 0:08:47.1]} 12... Be7
{[%clk 0:09:37.7]} 13. Nb6 {[%clk 0:08:46.3]} 13... Rd8 {[%clk 0:09:33.1]} 14.
Ne5 {[%clk 0:08:43.2]} 14... O-O {[%clk 0:08:57]} 15. Nexd7 {[%clk 0:08:36.2]}
15... Nxd7 {[%clk 0:08:57.4]} 16. Nxd7 {[%clk 0:08:36]} 16... Rxd7 {[%clk
0:08:56.6]} 17. Bxd7 {[%clk 0:08:35.3]} 17... Qxd7 {[%clk 0:08:57.7]} 18. dxc5
{[%clk 0:08:34.3]} 18... Qc6 {[%clk 0:08:43.7]} 19. Qf3 {[%clk 0:07:35.2]} 19...
Qb5 {[%clk 0:08:11.1]} 20. Qh5 {[%clk 0:07:16.8]} 20... Qc6 {[%clk 0:07:33]} 21.
f3 {[%clk 0:06:08.8]} 21... Bxc5 {[%clk 0:07:28]} 22. Bd2 {[%clk 0:06:05.7]}
22... Rd8 {[%clk 0:07:19.5]} 23. Be1 {[%clk 0:03:58.4]} 23... Bxe3+ {[%clk
0:06:55.8]} 24. Bf2 {[%clk 0:03:54.6]} 24... Rd5 {[%clk 0:06:28.8]} 25. Qh4
{[%clk 0:03:50.5]} 25... Bxf2+ {[%clk 0:06:00.1]} 26. Qxf2 {[%clk 0:03:47.9]}
26... h6 {[%clk 0:05:49.5]} 27. Rfc1 {[%clk 0:03:43.9]} 27... Qd6 {[%clk
0:05:37.6]} 28. Qb6 {[%clk 0:03:17.1]} 28... Qxb6+ {[%clk 0:05:12.4]} 29. axb6
{[%clk 0:03:17.1]} 29... Rb5 {[%clk 0:05:13.5]} 30. Ra4 {[%clk 0:03:16.6]} 30...
Rxb6 {[%clk 0:05:05.7]} 31. Rc4 {[%clk 0:03:16]} 31... Bc6 {[%clk 0:04:42.3]}
32. Raxb4 {[%clk 0:03:14.5]} 32... Bb5 {[%clk 0:04:42.3]} 33. Rc8+ {[%clk
0:03:15.1]} 33... Kh7 {[%clk 0:04:42.6]} 34. Rc7 {[%clk 0:03:16]} 34... Kg8
{[%clk 0:04:26]} 35. Rd4 {[%clk 0:02:52.8]} 35... Rb8 {[%clk 0:04:16.5]} 36. b4
{[%clk 0:02:47.8]} 36... g5 {[%clk 0:04:00]} 37. h4 {[%clk 0:02:45.5]} 37... Kg7
{[%clk 0:03:57.4]} 38. hxg5 {[%clk 0:02:43.4]} 38... hxg5 {[%clk 0:03:59.3]} 39.
Kf2 {[%clk 0:02:44.2]} 39... Kf6 {[%clk 0:03:55.8]} 40. Kg3 {[%clk 0:02:38.3]}
40... Rh8 {[%clk 0:03:45.9]} 41. Kf2 {[%clk 0:02:08.2]} 41... Rh1 {[%clk
0:03:42.8]} 42. g3 {[%clk 0:01:58.7]} 42... Rh2+ {[%clk 0:03:40.7]} 43. Kg1
{[%clk 0:01:57.4]} 43... Rb2 {[%clk 0:03:36.2]} 44. Rc3 {[%clk 0:01:24.4]} 44...
Rb1+ {[%clk 0:03:35.1]} 45. Kg2 {[%clk 0:01:21]} 45... Rb2+ {[%clk 0:03:36.1]}
46. Kg1 {[%clk 0:01:12.7]} 46... Rb1+ {[%clk 0:03:36.9]} 47. Kf2 {[%clk
0:01:11.8]} 47... Rb2+ {[%clk 0:03:36.7]} 48. Kg1 {[%clk 0:01:08.2]} 1/2-1/2

[Event "GrandPrix_30.05"]
[Site "Chess.com"]
[Date "2020.05.30"]
[Round "3"]
[White "nikosgal"]
[Black "2346PL"]
[Result "1-0"]
[WhiteElo "2242"]
[BlackElo "2057"]
[TimeControl "600+2"]
[EndTime "9:20:15 PDT"]
[Termination "nikosgal won by resignation"]

1. d4 {[%clk 0:10:01.9]} 1... f5 {[%clk 0:10:00.8]} 2. f3 {[%clk 0:10:02.1]}
2... Nf6 {[%clk 0:09:56.9]} 3. e4 {[%clk 0:10:02.9]} 3... fxe4 {[%clk
0:09:57.7]} 4. fxe4 {[%clk 0:10:03.1]} 4... Nxe4 {[%clk 0:09:57]} 5. Bd3 {[%clk
0:10:02]} 5... d5 {[%clk 0:09:45.4]} 6. Nf3 {[%clk 0:09:46.4]} 6... Bf5 {[%clk
0:09:39.8]} 7. O-O {[%clk 0:09:46.3]} 7... e6 {[%clk 0:09:37.6]} 8. Ne5 {[%clk
0:09:39.3]} 8... Nc6 {[%clk 0:09:02.9]} 9. Bb5 {[%clk 0:06:54.4]} 9... Nd6
{[%clk 0:06:15.6]} 10. Ba4 {[%clk 0:06:39.1]} 10... Qc8 {[%clk 0:05:28.6]} 11.
Nxc6 {[%clk 0:06:26.5]} 11... Qd7 {[%clk 0:05:27.4]} 12. c4 {[%clk 0:05:55.1]}
12... bxc6 {[%clk 0:05:26.3]} 13. cxd5 {[%clk 0:05:54.9]} 13... exd5 {[%clk
0:05:25.8]} 14. Nc3 {[%clk 0:05:56.1]} 14... Nb5 {[%clk 0:04:48.8]} 15. Qe2+
{[%clk 0:05:40.2]} 15... Be7 {[%clk 0:04:27.2]} 16. Nxb5 {[%clk 0:05:35.4]}
16... cxb5 {[%clk 0:04:28.4]} 17. Bxb5 {[%clk 0:05:36.3]} 17... c6 {[%clk
0:04:29.8]} 18. Bxc6 {[%clk 0:05:18.2]} 18... Qxc6 {[%clk 0:04:30.7]} 19. Rxf5
{[%clk 0:05:19.8]} 19... Kd8 {[%clk 0:02:49.2]} 20. Bf4 {[%clk 0:05:12.2]} 20...
Bf6 {[%clk 0:02:44.2]} 21. Rc1 {[%clk 0:05:10.2]} 21... Re8 {[%clk 0:02:10.2]}
22. Qd3 {[%clk 0:04:09.4]} 22... Qe6 {[%clk 0:01:49.3]} 23. Bc7+ {[%clk
0:03:28.3]} 23... Ke7 {[%clk 0:01:18.8]} 24. Be5 {[%clk 0:03:28.8]} 24... Kf8
{[%clk 0:01:01.5]} 25. Rcf1 {[%clk 0:03:21]} 25... Kg8 {[%clk 0:00:55.2]} 26.
Rxf6 {[%clk 0:02:51.4]} 26... gxf6 {[%clk 0:00:57.1]} 27. Qg3+ {[%clk
0:02:51.9]} 27... Kf7 {[%clk 0:00:53.5]} 28. Qh4 {[%clk 0:02:52.8]} 28... Qxe5
{[%clk 0:00:21.7]} 29. dxe5 {[%clk 0:02:52.9]} 29... Rxe5 {[%clk 0:00:23.6]} 30.
Qxf6+ {[%clk 0:02:53.1]} 1-0

[Event "GrandPrix_30.05"]
[Site "Chess.com"]
[Date "2020.05.30"]
[Round "3"]
[White "Sporty207"]
[Black "Korona_91"]
[Result "1-0"]
[WhiteElo "2223"]
[BlackElo "2053"]
[TimeControl "600+2"]
[EndTime "9:20:25 PDT"]
[Termination "Sporty207 won by resignation"]

1. d4 {[%clk 0:09:11.7]} 1... g6 {[%clk 0:09:58.9]} 2. c4 {[%clk 0:09:11.9]}
2... Bg7 {[%clk 0:09:59.1]} 3. Nc3 {[%clk 0:09:13.5]} 3... d6 {[%clk 0:10:00.6]}
4. e4 {[%clk 0:09:10.5]} 4... e5 {[%clk 0:10:01.3]} 5. Nge2 {[%clk 0:09:06.7]}
5... exd4 {[%clk 0:10:00]} 6. Nxd4 {[%clk 0:09:07.5]} 6... Nc6 {[%clk
0:10:01.3]} 7. Be3 {[%clk 0:09:08]} 7... Nf6 {[%clk 0:09:59.1]} 8. f3 {[%clk
0:09:03.6]} 8... O-O {[%clk 0:09:59.4]} 9. Qd2 {[%clk 0:09:04.1]} 9... Bd7
{[%clk 0:09:53.1]} 10. Be2 {[%clk 0:09:04.7]} 10... a5 {[%clk 0:09:47.1]} 11.
O-O {[%clk 0:08:59.5]} 11... Ne5 {[%clk 0:09:45.2]} 12. h3 {[%clk 0:08:55.3]}
12... Be6 {[%clk 0:09:40.2]} 13. b3 {[%clk 0:08:31.3]} 13... Re8 {[%clk
0:09:01.7]} 14. f4 {[%clk 0:08:28.4]} 14... Nc6 {[%clk 0:09:02.6]} 15. Bf3
{[%clk 0:08:29]} 15... Bd7 {[%clk 0:08:50]} 16. Rae1 {[%clk 0:08:07.4]} 16...
Nxd4 {[%clk 0:08:46]} 17. Bxd4 {[%clk 0:08:07.9]} 17... Bc6 {[%clk 0:08:42.5]}
18. f5 {[%clk 0:07:29.2]} 18... Nd7 {[%clk 0:08:35.8]} 19. Bxg7 {[%clk
0:07:28.2]} 19... Kxg7 {[%clk 0:08:36.7]} 20. Nd5 {[%clk 0:07:02.5]} 20... Bxd5
{[%clk 0:08:36.8]} 21. exd5 {[%clk 0:06:54]} 21... Ne5 {[%clk 0:08:31.6]} 22.
Bd1 {[%clk 0:06:50.4]} 22... f6 {[%clk 0:08:25.1]} 23. fxg6 {[%clk 0:06:06.8]}
23... hxg6 {[%clk 0:08:24.4]} 24. Bc2 {[%clk 0:06:06]} 24... a4 {[%clk
0:08:17.4]} 25. Qf4 {[%clk 0:05:57]} 25... axb3 {[%clk 0:08:15.6]} 26. axb3
{[%clk 0:05:55.7]} 26... Ra2 {[%clk 0:08:11.4]} 27. Bb1 {[%clk 0:05:30.6]} 27...
Ra3 {[%clk 0:07:58.3]} 28. Bc2 {[%clk 0:05:24.1]} 28... Qe7 {[%clk 0:07:29.4]}
29. Qg3 {[%clk 0:05:18.9]} 29... Qf7 {[%clk 0:07:14.5]} 30. Re2 {[%clk
0:05:11.4]} 30... Rh8 {[%clk 0:06:36.5]} 31. Ref2 {[%clk 0:05:06.7]} 31... Nd7
{[%clk 0:06:18]} 32. Bf5 {[%clk 0:04:45.9]} 32... Nc5 {[%clk 0:05:55.4]} 33. Be6
{[%clk 0:04:37.9]} 33... Nxe6 {[%clk 0:05:15.1]} 34. dxe6 {[%clk 0:04:39.8]}
34... Qxe6 {[%clk 0:05:04.2]} 35. Rxf6 {[%clk 0:04:39.4]} 35... Qe4 {[%clk
0:04:52.6]} 36. Rf7+ {[%clk 0:04:36.1]} 36... Kh6 {[%clk 0:04:51.2]} 37. R1f4
{[%clk 0:04:35.7]} 37... Qb1+ {[%clk 0:04:12.1]} 38. Kh2 {[%clk 0:04:36.2]}
38... Ra5 {[%clk 0:04:10.5]} 39. Rh4+ {[%clk 0:04:25.8]} 39... Rh5 {[%clk
0:04:11.3]} 40. Qf4+ {[%clk 0:04:26.7]} 40... g5 {[%clk 0:04:11.8]} 41. Rf6+
{[%clk 0:04:04.5]} 41... Kg7 {[%clk 0:04:10.2]} 42. Qd4 {[%clk 0:03:10.7]} 42...
Rxh4 {[%clk 0:02:21.4]} 43. Rf4+ {[%clk 0:03:10.5]} 43... Kh7 {[%clk 0:02:01.6]}
44. Rf7+ {[%clk 0:02:58]} 44... Kg6 {[%clk 0:02:01.7]} 45. Qg7+ {[%clk
0:02:51.9]} 45... Kh5 {[%clk 0:02:02]} 46. Qxh8+ {[%clk 0:02:51.7]} 46... Kg6
{[%clk 0:02:03.1]} 47. Qg8+ {[%clk 0:02:45.9]} 47... Kh6 {[%clk 0:02:04]} 48.
Rf6+ {[%clk 0:02:37.6]} 48... Kh5 {[%clk 0:02:04.6]} 49. Qh8+ {[%clk 0:02:35.7]}
1-0